bitfinex-derivatives/quotes_SOLF0:USTF0_20250626
["timestamp","ask_amount","ask_price","bid_price","bid_amount"]
[1750920659348,6.9021,144.82,144.78,6.9036]
[1750920660149,10.33674083,144.81,144.77,6.9042]
[1750920660345,3.43424083,144.81,144.76,34.14]
[1750920660946,3.43424083,144.81,144.78,6.9038]
[1750920661149,3.43424083,144.81,144.76,34.14]
[1750920661457,10.33584083,144.83,144.79,6.9033]
[1750920662543,3.43424083,144.83,144.76,37.57424083]
[1750920662749,3.43424083,144.83,144.8,6.9028]
[1750920664153,3.43424083,144.83,144.76,37.57424083]
[1750920664352,3.43424083,144.81,144.76,34.14]
[1750920665051,3.43424083,144.81,144.78,6.9034]
[1750920672953,10.33684083,144.81,144.78,6.9034]
[1750920674055,3.43424083,144.79,144.76,34.14]
[1750920674557,3.43424083,144.79,144.73,36.3776]
[1750920674852,10.33794083,144.79,144.73,36.3776]
[1750920676756,10.33794083,144.79,144.75,6.905]
[1750920679457,10.33794083,144.79,144.76,6.9048]
[1750920680160,3.43424083,144.77,144.73,34.12]
[1750920681164,10.33884083,144.77,144.74,6.9055]
[1750920682062,6.9049,144.76,144.73,41.0261]
[1750920683063,10.33874083,144.77,144.74,6.9057]
[1750920683971,10.33874083,144.77,144.73,6.9061]
[1750920684266,6.905,144.76,144.73,6.9061]
[1750920684662,10.33884083,144.77,144.73,6.9061]
[1750920687071,10.33884083,144.77,144.71,2.2629]
[1750920688277,2.19814556,144.75,144.71,2.2629]
[1750920688480,2.19814556,144.75,144.71,4.46104556]
[1750920689372,2.19814556,144.75,144.72,6.9066]
[1750920691478,2.19814556,144.74,144.72,6.9066]
[1750920691979,6.9049,144.76,144.72,6.9066]
[1750920692276,2.19814556,144.74,144.72,6.9066]
[1750920692774,2.19814556,144.74,144.73,6.9063]
[1750920692968,2.19814556,144.75,144.71,2.2629]
[1750920693274,2.19814556,144.75,144.74,6.9057]
[1750920696588,6.9042,144.78,144.74,6.9057]
[1750920696880,2.19814556,144.75,144.74,6.9057]
[1750920699280,2.19814556,144.75,144.73,6.906]
[1750920699480,2.19814556,144.75,144.71,2.2629]
[1750920699880,2.19814556,144.75,144.74,6.9058]
[1750920704485,2.19814556,144.75,144.73,6.906]
[1750920704691,2.19814556,144.74,144.73,6.906]
[1750920706290,6.9044,144.77,144.73,6.906]
[1750920706587,2.19814556,144.74,144.73,6.906]
[1750920709390,2.19814556,144.74,144.7,34.12]
[1750920709582,2.19814556,144.71,144.68,34.12]
[1750920709781,2.19814556,144.69,144.68,34.12]
[1750920710079,2.19814556,144.69,144.67,9.2233]
[1750920710284,2.19814556,144.68,144.67,6.909]
[1750920710987,2.19814556,144.68,144.66,6.9094]
[1750920711293,2.19814556,144.67,144.62,34.12]
[1750920711489,2.19814556,144.66,144.62,36.31814556]
[1750920712384,2.19814556,144.66,144.65,6.9101]
[1750920712994,2.19814556,144.67,144.66,6.9095]
[1750920714193,3.4383641,144.68,144.66,6.9095]
[1750920716695,3.4383641,144.68,144.65,6.9099]
[1750920720199,34.12,144.7,144.62,34.12]
[1750920720407,3.4383641,144.69,144.62,34.12]
[1750920720601,3.4383641,144.67,144.62,34.12]
[1750920720996,34.12,144.7,144.59,34.12]
[1750920721198,3.4383641,144.65,144.59,34.12]
[1750920721703,3.4383641,144.65,144.62,6.9112]
[1750920722004,3.4383641,144.65,144.59,34.12]
[1750920722203,3.4383641,144.67,144.6,3.4383641]
[1750920722506,3.4383641,144.69,144.6,3.4383641]
[1750920722902,3.4383641,144.67,144.6,3.4383641]
[1750920723610,3.4383641,144.67,144.63,6.9107]
[1750920723911,3.4383641,144.67,144.6,3.4383641]
[1750920724100,3.4383641,144.67,144.64,6.9105]
[1750920725101,3.4383641,144.67,144.63,6.9108]
[1750920725294,3.4383641,144.67,144.59,37.5583641]
[1750920725704,3.4383641,144.67,144.64,6.9105]
[1750920728602,3.4383641,144.67,144.59,37.5583641]
[1750920730423,3.4383641,144.67,144.64,6.9101]
[1750920732112,3.4383641,144.67,144.65,6.9101]
[1750920734216,2.20097861,144.66,144.65,6.9101]
[1750920735620,34.14,144.69,144.66,6.9096]
[1750920735820,2.20097861,144.67,144.66,6.9096]
[1750920736118,2.20097861,144.67,144.65,6.9098]
[1750920736316,2.20097861,144.66,144.65,6.9098]
[1750920741114,2.20097861,144.66,144.64,6.9104]
[1750920741421,2.20097861,144.65,144.64,6.9104]
[1750920743323,34.14,144.72,144.64,2.20097861]
[1750920743524,2.20097861,144.69,144.64,2.20097861]
[1750920743820,2.20097861,144.68,144.64,2.20097861]
[1750920744020,2.20097861,144.67,144.63,36.34097861]
[1750920744320,2.20097861,144.66,144.63,34.14]
[1750920745325,2.20097861,144.66,144.64,6.9102]
[1750920746321,2.20097861,144.67,144.64,6.9102]
[1750920746827,2.20097861,144.65,144.63,34.14]
[1750920747023,2.20097861,144.64,144.61,2.20097861]
[1750920747324,2.20097861,144.64,144.61,6.9119]
[1750920747927,2.20097861,144.64,144.62,6.9115]
[1750920750322,2.20097861,144.63,144.6,34.14]
[1750920750528,2.20097861,144.62,144.6,34.14]
[1750920751224,2.20097861,144.62,144.6,41.0523]
[1750920751424,2.20097861,144.61,144.6,41.0523]
[1750920751627,2.20097861,144.63,144.6,34.14]
[1750920752126,2.20097861,144.63,144.62,6.9115]
[1750920753220,2.20097861,144.63,144.61,6.9118]
[1750920753418,2.20097861,144.62,144.61,6.9118]
[1750920754433,6.9103,144.65,144.61,6.9118]
[1750920754620,2.20097861,144.62,144.61,6.9118]
[1750920755134,6.9103,144.65,144.62,6.9115]
[1750920755331,2.20097861,144.63,144.62,6.9115]
[1750920756724,2.20097861,144.63,144.61,6.9118]
[1750920756932,2.20097861,144.63,144.6,34.14]
[1750920757233,2.20097861,144.62,144.6,41.0521]
[1750920759334,2.20097861,144.62,144.6,6.9121]
[1750920762035,2.20097861,144.61,144.6,6.9121]
[1750920763629,6.9106,144.64,144.6,6.9121]
[1750920763830,2.20097861,144.61,144.6,6.9121]
[1750920767138,2.20097861,144.62,144.6,6.9121]
[1750920768945,2.20097861,144.62,144.59,6.9128]
[1750920769845,2.20097861,144.62,144.6,6.9124]
[1750920770748,2.20097861,144.61,144.6,6.9124]
[1750920772739,2.20097861,144.61,144.57,34.14]
[1750920772946,2.20097861,144.6,144.57,34.14]
[1750920773358,2.20097861,144.6,144.58,6.9134]
[1750920773539,2.20097861,144.6,144.57,34.14]
[1750920774247,2.20097861,144.6,144.59,6.9129]
[1750920774747,2.20097861,144.6,144.58,6.9132]
[1750920776749,2.20097861,144.61,144.57,2.20097861]
[1750920777849,2.20097861,144.61,144.59,6.9125]
[1750920778353,2.20097861,144.61,144.6,6.9125]
[1750920778645,2.20097861,144.63,144.59,2.20097861]
[1750920779550,2.20097861,144.63,144.61,6.9117]
[1750920779750,2.20097861,144.62,144.57,2.20097861]
[1750920779950,2.20097861,144.61,144.57,2.20097861]
[1750920780651,2.20097861,144.61,144.6,6.9123]
[1750920781758,2.20228733,144.61,144.56,34.14]
[1750920782061,2.20228733,144.59,144.56,34.14]
[1750920782462,2.20228733,144.59,144.57,6.9139]
[1750920782964,2.20228733,144.59,144.56,41.0539]
[1750920783265,2.20228733,144.59,144.56,34.14]
[1750920783560,41.1501,144.67,144.57,2.20228733]
[1750920783757,2.20228733,144.63,144.59,2.20228733]
[1750920783954,2.20228733,144.63,144.62,6.9115]
[1750920786062,2.20176188,144.63,144.62,6.9115]
[1750920786264,2.20176188,144.63,144.61,6.9117]
[1750920786463,2.20176188,144.62,144.61,6.9117]
[1750920791668,6.9102,144.65,144.62,6.9113]
[1750920791862,2.20176188,144.63,144.62,6.9113]
[1750920796977,5.8000269,144.66,144.59,34.14]
[1750920796978,41.1501,144.67,144.6,2.20176188]
[1750920797181,34.14,144.67,144.61,12.88577624]
[1750920797485,2.20176188,144.66,144.62,2.20176188]
[1750920798190,2.20176188,144.66,144.65,6.9101]
[1750920798988,2.20176188,144.66,144.64,6.9105]
[1750920799192,2.20176188,144.65,144.64,6.9105]
[1750920799882,2.20176188,144.65,144.63,6.9108]
[1750920800581,2.20176188,144.64,144.63,6.9108]
[1750920802785,2.20176188,144.64,144.62,6.9113]
[1750920802990,2.20176188,144.63,144.59,47.02577624]
[1750920803187,34.14,144.67,144.59,47.02577624]
[1750920803188,2.20176188,144.62,144.59,47.02577624]
[1750920803383,2.20176188,144.62,144.61,6.9117]
[1750920803785,2.20176188,144.62,144.59,47.02577624]
[1750920803990,2.20176188,144.61,144.6,6.9122]
[1750920805193,2.20176188,144.62,144.61,6.912]
[1750920805379,2.20176188,144.63,144.61,6.912]
[1750920806793,840.85880491,144.62,144.44,19.44028952]
[1750920806996,2.20237449,144.52,144.47,2.3893]
[1750920807193,2.20237449,144.5,144.47,2.3893]
[1750920808184,3.44654643,144.52,144.47,2.3893]
[1750920808389,6.9169,144.51,144.47,9.3077]
[1750920808590,6.9169,144.51,144.47,2.3893]
[1750920808790,3.44654643,144.52,144.47,2.3893]
[1750920808999,10.36314643,144.52,144.48,6.9182]
[1750920809199,8.55521632,144.54,144.47,2.3893]
[1750920809385,3.44654643,144.54,144.47,2.3893]
[1750920809592,6.9161,144.53,144.49,6.9174]
[1750920810194,3.44654643,144.52,144.47,2.3893]
[1750920810492,3.44654643,144.53,144.47,2.3893]
[1750920811092,10.36274643,144.53,144.49,6.9175]
[1750920811495,3.44654643,144.53,144.47,2.3893]
[1750920811695,6.9166,144.52,144.48,6.918]
[1750920812390,10.36254643,144.53,144.49,6.9177]
[1750920812593,3.44527778,144.54,144.47,2.3893]
[1750920813001,10.36087778,144.54,144.51,6.9167]
[1750920814693,3.44527778,144.54,144.52,6.9162]
[1750920814896,3.44527778,144.54,144.47,2.3893]
[1750920815292,34.14,144.56,144.47,2.3893]
[1750920815293,3.44527778,144.52,144.47,2.3893]
[1750920816900,3.44527778,144.52,144.5,6.917]
[1750920820803,3.44527778,144.52,144.51,6.9168]
[1750920821202,3.44527778,144.54,144.47,5.83457778]
[1750920821398,37.58527778,144.57,144.49,3.44527778]
[1750920821804,10.35947778,144.57,144.53,6.9154]
[1750920821999,3.4406228,144.72,144.56,3.4406228]
[1750920822192,3.4406228,144.64,144.57,34.14]
[1750920822395,3.4406228,144.64,144.57,39.0527]
[1750920822606,5.22165283,144.68,144.57,39.0527]
[1750920822909,3.4406228,144.64,144.57,39.0527]
[1750920823293,3.4406228,144.64,144.57,42.4933228]
[1750920823600,3.4406228,144.64,144.61,6.9119]
[1750920824807,10.3512228,144.64,144.61,6.9119]
[1750920826210,6.9111,144.63,144.6,6.9122]
[1750920826610,3.4406228,144.64,144.57,42.4933228]
[1750920826812,10.3514228,144.64,144.61,6.9119]
[1750920827001,3.4406228,144.64,144.57,42.4933228]
[1750920827202,3.4406228,144.64,144.57,39.0527]
[1750920827603,6.9111,144.63,144.6,6.9122]
[1750920827912,3.4406228,144.64,144.57,39.0527]
[1750920828212,6.9116,144.62,144.59,6.9127]
[1750920828711,6.9116,144.62,144.57,39.0527]
[1750920828908,6.9116,144.62,144.59,6.9126]
[1750920830415,6.9123,144.61,144.58,6.9133]
[1750920830615,3.4406228,144.62,144.57,39.0527]
[1750920830911,3.4406228,144.62,144.58,6.9133]
[1750920832517,6.9125,144.6,144.58,6.9133]
[1750920834015,3.4406228,144.62,144.57,45.9666]
[1750920834511,6.9129,144.6,144.57,45.9666]
[1750920835313,6.9129,144.6,144.58,6.9133]
[1750920838311,6.913,144.59,144.57,45.9665]
[1750920838620,3.44194112,144.59,144.53,2.3967]
[1750920838923,10.35614112,144.57,144.54,6.915]
[1750920839211,3.44370705,144.57,144.54,6.915]
[1750920839806,10.35780705,144.57,144.54,6.915]
[1750920841021,6.9144,144.56,144.54,6.915]
[1750920843622,10.35780705,144.57,144.54,6.915]
[1750920844825,10.35780705,144.57,144.55,6.9147]
[1750920845220,10.35780705,144.57,144.53,37.5767]
[1750920845427,10.35780705,144.57,144.54,6.9151]
[1750920847327,10.35780705,144.57,144.54,6.9152]
[1750920847530,10.35780705,144.57,144.53,37.5767]
[1750920847728,5.03565676,144.6,144.53,37.5767]
[1750920847729,3.44343123,144.58,144.53,37.5767]
[1750920848031,8.92043281,144.59,144.55,6.9146]
[1750920848234,3.44290781,144.59,144.55,6.9146]
[1750920848533,3.44290781,144.59,144.53,37.5767]
[1750920848724,10.35610781,144.59,144.56,6.9143]
[1750920849426,10.35610781,144.59,144.57,6.9139]
[1750920849823,10.35610781,144.59,144.53,37.5767]
[1750920850327,10.35610781,144.59,144.56,6.9141]
[1750920851430,3.44290781,144.59,144.53,37.5767]
[1750920853537,3.44290781,144.59,144.57,6.9138]
[1750920858236,10.35590781,144.59,144.57,6.9138]
[1750920858431,6.913,144.59,144.57,6.9138]
[1750920859538,10.35540033,144.6,144.57,6.9138]
[1750920860333,10.35540033,144.6,144.58,6.9133]
[1750920860833,10.35540033,144.6,144.53,37.5767]
[1750920861037,10.35540033,144.6,144.57,6.9137]
[1750920861338,5.48952983,144.59,144.57,6.9137]
[1750920861641,10.35540033,144.6,144.57,6.9137]
[1750920861835,5.47541747,144.59,144.57,6.9137]
[1750920862033,10.35540033,144.6,144.57,6.9137]
[1750920862931,12.39004021,144.59,144.57,6.9137]
[1750920863124,3.44270033,144.6,144.57,6.9137]
[1750920863326,5.47703801,144.59,144.57,6.9137]
[1750920863527,10.35550033,144.6,144.57,6.9137]
[1750920863736,5.47887094,144.59,144.57,6.9137]
[1750920863938,10.35550033,144.6,144.57,6.9137]
[1750920864330,5.48454262,144.59,144.57,6.9137]
[1750920864536,6.913,144.59,144.57,6.9137]
[1750920865542,6.913,144.59,144.53,37.5767]
[1750920865836,5.48787752,144.58,144.53,37.5767]
[1750920866035,6.913,144.59,144.53,37.5767]
[1750920866239,5.4865842,144.58,144.56,6.9141]
[1750920866540,10.35584696,144.59,144.56,6.9141]
[1750920866742,5.48824779,144.58,144.56,6.9141]
[1750920866945,10.35584696,144.59,144.56,6.9141]
[1750920867147,5.48824779,144.58,144.56,6.9141]
[1750920867344,3.44284696,144.59,144.57,6.9139]
[1750920867544,5.48870118,144.58,144.57,6.9139]
[1750920868244,42.0922,144.61,144.58,6.9133]
[1750920868441,10.57055555,144.6,144.54,3.44172439]
[1750920868648,10.57128152,144.59,144.54,3.44172439]
[1750920868945,6.9123,144.61,144.58,6.9134]
[1750920869146,10.53864171,144.6,144.58,6.9134]
[1750920869448,10.53913715,144.59,144.57,6.9136]
[1750920869635,9.39487263,144.62,144.55,4.7959]
[1750920869831,10.53967924,144.61,144.55,4.7959]
[1750920870030,17.45217924,144.6,144.57,6.9136]
[1750920870232,10.53967924,144.59,144.57,6.9136]
[1750920870437,6.9125,144.6,144.57,6.9136]
[1750920870639,10.54068212,144.59,144.57,6.9136]
[1750920870844,6.9125,144.6,144.57,6.9136]
[1750920871345,5.48796096,144.59,144.55,4.7959]
[1750920871549,3.44172439,144.62,144.55,4.7959]
[1750920871749,10.54357289,144.61,144.55,4.7959]
[1750920871952,5.48796334,144.6,144.56,3.44172439]
[1750920872244,6.9113,144.63,144.6,6.9123]
[1750920872446,10.54448919,144.62,144.6,6.9123]
[1750920872742,5.48798573,144.61,144.6,6.9125]
[1750920873049,3.44172439,144.65,144.58,5.86592439]
[1750920873250,4.98281693,144.64,144.61,6.9115]
[1750920873548,10.35212439,144.65,144.61,6.9115]
[1750920873744,11.8930462,144.64,144.61,6.9115]
[1750920874050,3.44172439,144.65,144.6,6.9123]
[1750920874346,4.8814749,144.64,144.6,6.9123]
[1750920874553,8.32272782,144.63,144.6,6.9123]
[1750920874848,3.44172439,144.63,144.59,6.9125]
[1750920875048,6.9118,144.62,144.58,2.4242]
[1750920875547,6.9118,144.62,144.59,6.9128]
[1750920878649,10.35372439,144.61,144.59,6.9128]
[1750920878951,10.35372439,144.61,144.58,6.9132]
[1750920879653,6.9125,144.6,144.58,6.9132]
[1750920880538,6.9129,144.59,144.57,41.7737]
[1750920882148,10.35462439,144.59,144.57,41.7737]
[1750920884950,10.35462439,144.59,144.57,6.9137]
[1750920885756,3.44172439,144.59,144.57,6.9137]
[1750920886751,3.44172439,144.59,144.55,4.7959]
[1750920887452,3.44172439,144.59,144.58,6.9134]
[1750920887652,8.8926329,144.59,144.58,6.9134]
[1750920887860,5.45090851,144.59,144.58,6.9134]
[1750920889162,3.44172439,144.61,144.58,6.9134]
[1750920889455,5.44765417,144.6,144.58,6.9134]
[1750920889659,10.35382439,144.61,144.58,6.9134]
[1750920889848,5.44811151,144.6,144.58,6.9134]
[1750920890049,10.35382439,144.61,144.58,6.9134]
[1750920890355,5.44811456,144.6,144.58,6.9134]
[1750920890655,10.35382439,144.61,144.58,6.9134]
[1750920890953,5.44839922,144.6,144.58,6.9134]
[1750920891163,10.35382439,144.61,144.58,6.9134]
[1750920891454,5.44839617,144.6,144.58,6.9134]
[1750920891657,10.35382439,144.61,144.58,6.9134]
[1750920891856,5.45031483,144.6,144.58,6.9134]
[1750920892059,10.35382439,144.61,144.59,6.9129]
[1750920892360,5.45031954,144.6,144.55,4.7959]
[1750920892558,10.35382439,144.61,144.55,4.7959]
[1750920892756,5.45075008,144.6,144.58,6.9132]
[1750920893057,10.35382439,144.61,144.58,6.9132]
[1750920893258,5.4507516,144.6,144.58,6.9132]
[1750920893454,10.35382439,144.61,144.58,6.9132]
[1750920893658,5.45127007,144.6,144.58,6.9132]
[1750920893853,10.35382439,144.61,144.59,6.9129]
[1750920894054,5.45126384,144.6,144.59,6.9129]
[1750920895562,5.45126384,144.6,144.58,6.9132]
[1750920895865,10.35382439,144.61,144.58,6.9132]
[1750920896063,5.44562943,144.6,144.58,6.9132]
[1750920896362,10.35382439,144.61,144.58,6.9132]
[1750920896563,5.44572578,144.6,144.58,6.9132]
[1750920896759,5.44572578,144.59,144.58,6.9132]
[1750920897062,8.88745017,144.59,144.55,2.441]
[1750920897254,5.44572578,144.58,144.55,2.441]
[1750920897453,3.44172439,144.59,144.55,2.441]
[1750920897655,5.44556544,144.58,144.56,6.9141]
[1750920897856,10.35502439,144.59,144.56,6.9141]
[1750920898058,5.44556544,144.58,144.56,6.9141]
[1750920898256,10.35502439,144.59,144.56,6.9141]
[1750920898463,38.833,144.66,144.55,2.441]
[1750920898655,3.44172439,144.63,144.56,2.3855]
[1750920898855,10.31183322,144.62,144.56,2.3855]
[1750920899056,3.44172439,144.63,144.56,2.3855]
[1750920899057,10.31183322,144.61,144.58,6.9132]
[1750920899258,5.44626187,144.6,144.58,6.9132]
[1750920899561,3.44172439,144.63,144.58,6.9132]
[1750920899758,17.22420999,144.62,144.59,6.9129]
[1750920900063,5.44656614,144.61,144.59,6.9129]
[1750920900365,10.35292439,144.63,144.6,6.9123]
[1750920900560,10.31167024,144.62,144.6,6.9123]
[1750920900761,5.44597933,144.61,144.6,6.9123]
[1750920903165,5.44597933,144.61,144.59,6.9127]
[1750920903462,10.35302439,144.63,144.57,34.6]
[1750920903662,10.06741916,144.62,144.57,34.6]
[1750920903861,5.29594486,144.61,144.57,34.6]
[1750920904157,10.35302439,144.63,144.57,34.6]
[1750920904358,10.06719447,144.62,144.57,34.6]
[1750920904563,5.29582666,144.61,144.57,34.6]
[1750920904768,3.44172439,144.63,144.57,34.6]
[1750920904965,10.06831819,144.62,144.57,34.6]
[1750920905266,5.29641779,144.61,144.57,34.6]
[1750920905469,3.44172439,144.63,144.57,34.6]
[1750920905669,5.29657766,144.62,144.57,34.6]
[1750920905965,3.44172439,144.63,144.57,34.6]
[1750920906170,5.29619507,144.62,144.6,6.9121]
[1750920906466,3.44172439,144.63,144.6,6.9121]
[1750920906671,5.30817442,144.62,144.61,6.9119]
[1750920906969,5.30817442,144.62,144.57,34.6]
[1750920907165,3.44172439,144.63,144.57,34.6]
[1750920907367,5.30799804,144.62,144.6,6.912]
[1750920907565,3.44172439,144.63,144.57,34.6]
[1750920907771,5.30797145,144.62,144.57,34.6]
[1750920908067,3.44172439,144.63,144.61,6.9117]
[1750920909672,5.3070043,144.62,144.61,6.9117]
[1750920910170,3.44172439,144.63,144.61,6.9117]
[1750920910366,5.30691266,144.62,144.61,6.9117]
[1750920910566,3.44172439,144.63,144.61,6.9117]
[1750920911473,10.35272439,144.63,144.6,6.9122]
[1750920912069,5.31249044,144.62,144.6,6.9122]
[1750920912263,10.35272439,144.63,144.6,6.9122]
[1750920912464,5.31304177,144.62,144.6,6.9122]
[1750920912670,10.35272439,144.63,144.6,6.9122]
[1750920912975,5.31304411,144.62,144.61,6.912]
[1750920913370,3.44172439,144.63,144.61,6.912]
[1750920913672,3.44172439,144.63,144.62,6.9115]
[1750920913869,8.7551538,144.63,144.62,6.9115]
[1750920914261,5.31342941,144.63,144.62,6.9115]
[1750920914459,2.20144073,144.64,144.63,6.911]
[1750920914671,5.3196632,144.64,144.63,6.911]
[1750920915770,7.52110393,144.64,144.63,6.911]
[1750920916365,5.3196632,144.64,144.63,6.911]
[1750920918270,10.34949448,144.66,144.63,6.911]
[1750920918574,5.31339252,144.65,144.63,6.911]
[1750920918774,10.34949448,144.66,144.63,6.911]
[1750920918974,5.32474906,144.65,144.63,6.911]
[1750920919178,10.34949448,144.66,144.63,6.911]
[1750920919364,5.32398313,144.65,144.63,6.911]
[1750920919573,10.34949448,144.66,144.63,6.911]
[1750920919866,5.32392677,144.65,144.63,6.911]
[1750920920068,10.34949448,144.66,144.63,6.911]
[1750920920377,5.32058446,144.65,144.63,6.911]
[1750920920578,10.34949448,144.66,144.63,6.911]
[1750920920781,5.32058446,144.65,144.63,6.911]
[1750920920981,10.34949448,144.66,144.63,6.911]
[1750920921172,5.32054297,144.65,144.63,6.911]
[1750920921374,10.34949448,144.66,144.63,6.911]
[1750920921573,5.31994799,144.65,144.63,6.911]
[1750920921776,10.34949448,144.66,144.63,6.911]
[1750920922079,5.31994799,144.65,144.63,6.911]
[1750920922271,3.43959448,144.66,144.64,6.9105]
[1750920922476,5.30822692,144.65,144.64,6.9105]
[1750920923076,5.30822692,144.65,144.61,37.0043]
[1750920923279,8.74709448,144.64,144.61,34.6]
[1750920923480,3.43959448,144.64,144.61,34.6]
[1750920923682,3.43959448,144.64,144.62,6.9114]
[1750920923876,3.43959448,144.64,144.61,34.6]
[1750920924076,5.30727266,144.63,144.58,37.0216]
[1750920924283,3.43959448,144.64,144.61,6.9118]
[1750920924579,5.30719868,144.63,144.61,6.9118]
[1750920924780,3.43959448,144.64,144.61,6.9118]
[1750920924980,12.21819868,144.63,144.61,6.9118]
[1750920925168,6.911,144.63,144.61,6.9118]
[1750920925567,10.35039448,144.64,144.61,6.9118]
[1750920925772,5.30691673,144.63,144.61,6.9118]
[1750920925974,3.43959448,144.64,144.61,6.9118]
[1750920926175,5.3072926,144.63,144.61,6.9118]
[1750920926374,3.43959448,144.64,144.61,6.9118]
[1750920926679,5.30753931,144.63,144.61,6.9118]
[1750920926876,6.9111,144.63,144.61,6.9118]
[1750920929284,6.9115,144.62,144.6,6.9122]
[1750920929580,3.43959448,144.64,144.6,6.9122]
[1750920929781,5.29715387,144.63,144.6,6.9122]
[1750920929979,6.9111,144.63,144.6,6.9122]
[1750920930174,5.29678014,144.62,144.6,6.9122]
[1750920930382,6.9116,144.62,144.6,6.9122]
[1750920935279,6.9116,144.62,144.59,6.9127]
[1750920936380,2.20220952,144.61,144.59,6.9127]
[1750920937481,2.20220952,144.61,144.58,37.0216]
[1750920937482,2.20220952,144.61,144.6,6.9125]
[1750920938481,2.20220952,144.61,144.58,37.0216]
[1750920938680,2.20220952,144.59,144.57,2.3429]
[1750920938988,2.20220952,144.58,144.56,2.3855]
[1750920939176,2.3202,144.65,144.56,2.3855]
[1750920939177,2.20220952,144.57,144.56,9.2996]
[1750920940180,34.62,144.62,144.58,6.913]
[1750920940377,2.20220952,144.62,144.58,2.20220952]
[1750920940988,2.20220952,144.62,144.6,6.9124]
[1750920941186,2.20220952,144.61,144.6,6.9124]
[1750920942386,10.35211341,144.63,144.6,6.9124]
[1750920942585,5.29135743,144.62,144.6,6.9124]
[1750920942787,10.35211341,144.63,144.6,6.9124]
[1750920942984,5.29136101,144.62,144.6,6.9124]
[1750920943183,10.35211341,144.63,144.6,6.9124]
[1750920943389,5.29151675,144.62,144.6,6.9124]
[1750920943692,10.35211341,144.63,144.6,6.9124]
[1750920943875,5.29259774,144.62,144.6,6.9124]
[1750920944078,10.35211341,144.63,144.6,6.9124]
[1750920944288,5.29260132,144.62,144.6,6.9124]
[1750920944488,10.35211341,144.63,144.6,6.9124]
[1750920944784,5.29273932,144.62,144.6,6.9124]
[1750920944984,10.35211341,144.63,144.6,6.9124]
[1750920945185,5.2927429,144.62,144.6,6.9124]
[1750920945381,10.35211341,144.63,144.6,6.9124]
[1750920945686,12.20969021,144.62,144.59,6.9127]
[1750920945883,6.9117,144.62,144.57,2.2925]
[1750920946083,6.9117,144.62,144.57,36.9125]
[1750920947185,10.35231341,144.63,144.6,6.9125]
[1750920947390,5.29809715,144.62,144.6,6.9125]
[1750920947587,10.35231341,144.63,144.6,6.9125]
[1750920947787,5.29810073,144.62,144.6,6.9125]
[1750920947991,6.9116,144.62,144.59,6.9127]
[1750920949084,3.44101341,144.61,144.59,6.9127]
[1750920956597,3.44101341,144.61,144.6,6.9125]
[1750920959094,3.44101341,144.61,144.59,6.9127]
[1750920959597,10.35301341,144.61,144.59,6.9127]
[1750920959794,3.44101341,144.61,144.57,34.62]
[1750920960199,6.9127,144.6,144.57,41.5336]
[1750920961197,6.9127,144.6,144.58,6.9134]
[1750920962095,10.35321341,144.61,144.59,6.9129]
[1750920964303,2.20283396,144.6,144.59,6.9129]
[1750920965296,9.11543396,144.6,144.58,6.9132]
[1750920965503,2.20283396,144.59,144.58,6.9132]
[1750920972019,2.20283396,144.59,144.57,34.62]
[1750920972201,2.20283396,144.58,144.57,34.62]
[1750920972610,2.20283396,144.58,144.57,6.9139]
[1750920974715,6.9122,144.61,144.55,2.20283396]
[1750920974913,5.26749091,144.6,144.56,2.20283396]
[1750920975212,2.20283396,144.61,144.57,4.50603396]
[1750920975418,2.20283396,144.61,144.6,6.9125]
[1750920975812,2.20283396,144.62,144.58,2.20283396]
[1750920976015,2.20283396,144.61,144.59,6.9127]
[1750920976216,2.20283396,144.61,144.57,38.98603396]
[1750920976721,2.20283396,144.61,144.6,6.9125]
[1750920984127,2.20283396,144.62,144.6,6.9125]
[1750920985126,6.9113,144.63,144.6,6.9125]
[1750920985328,7.48276746,144.62,144.6,6.9125]
[1750920985629,2.20283396,144.62,144.6,6.9125]
[1750920986623,7.48798835,144.61,144.57,36.7832]
[1750920986827,2.20283396,144.6,144.57,36.7832]